Workbook

Sheet Timer
A1: F_CPU | B1: 20000000
A2: Divider | B2: 8
A3: F_TIMER2 | B3: =B1/B2 -> 2500000
A4: MAX (16Bit) | B4: 250
A5: F_PWM | B5: =B3/B4 -> 10000
A6: Steps @100Hz | B6: =B5/100 -> 100
A7: Rounded | B7: 100 | C7: Werte Halbwelle
A8: resulting Freq[Hz] | B8: =B5/B7 -> 100 | C8: =B8/2 -> 50

Sheet Sinus
A1: idx | B1: sin | C1: Ausgabe(invers) | D1: phi
A2: 0 | B2: =ROUND(Max*SIN(A2*PI()/Steps),0) -> 0 | C2: =Max-B2 -> 999 | D2: =ROUND(MOD(180*A2/Steps,360), 1) -> 0
A3: 1 | B3: 16 | C3: 983 | D3: 0.9
A4: 2 | B4: 31 | C4: 968 | D4: 1.8 | F4: Dateiname:
A5: 3 | B5: 47 | C5: 952 | D5: 2.7 | F5: d:\Users\Andreas\Documents\Atmel Studio\Sinuswandler\Sinuswandler\Sinus200.cin
A6: 4 | B6: 63 | C6: 936 | D6: 3.6
A7: 5 | B7: 78 | C7: 921 | D7: 4.5
A8: 6 | B8: 94 | C8: 905 | D8: 5.4
A9: 7 | B9: 110 | C9: 889 | D9: 6.3
A10: 8 | B10: 125 | C10: 874 | D10: 7.2 | F10: Freq
A11: 9 | B11: 141 | C11: 858 | D11: 8.1 | F11: 20000
A12: 10 | B12: 156 | C12: 843 | D12: 9
A13: 11 | B13: 172 | C13: 827 | D13: 9.9 | F13: Steps
A14: 12 | B14: 187 | C14: 812 | D14: 10.8 | F14: 200
A15: 13 | B15: 203 | C15: 796 | D15: 11.7
A16: 14 | B16: 218 | C16: 781 | D16: 12.6 | F16: Max:
A17: 15 | B17: 233 | C17: 766 | D17: 13.5 | F17: 999
A18: 16 | B18: 248 | C18: 751 | D18: 14.4
A19: 17 | B19: 264 | C19: 735 | D19: 15.3
A20: 18 | B20: 279 | C20: 720 | D20: 16.2
A21: 19 | B21: 294 | C21: 705 | D21: 17.1
A22: 20 | B22: 309 | C22: 690 | D22: 18
A23: 21 | B23: 324 | C23: 675 | D23: 18.9
A24: 22 | B24: 338 | C24: 661 | D24: 19.8
A25: 23 | B25: 353 | C25: 646 | D25: 20.7
A26: 24 | B26: 368 | C26: 631 | D26: 21.6
A27: 25 | B27: 382 | C27: 617 | D27: 22.5
A28: 26 | B28: 397 | C28: 602 | D28: 23.4
A29: 27 | B29: 411 | C29: 588 | D29: 24.3
A30: 28 | B30: 425 | C30: 574 | D30: 25.2
A31: 29 | B31: 439 | C31: 560 | D31: 26.1
A32: 30 | B32: 454 | C32: 545 | D32: 27
A33: 31 | B33: 467 | C33: 532 | D33: 27.9
A34: 32 | B34: =ROUND(Max*SIN(A34*PI()/Steps),0) -> 481 | C34: =Max-B34 -> 518 | D34: =ROUND(MOD(180*A34/Steps,360), 1) -> 28.8
A35: 33 | B35: 495 | C35: 504 | D35: 29.7
A36: 34 | B36: 509 | C36: 490 | D36: 30.6
A37: 35 | B37: 522 | C37: 477 | D37: 31.5
A38: 36 | B38: 535 | C38: 464 | D38: 32.4
A39: 37 | B39: 548 | C39: 451 | D39: 33.3
A40: 38 | B40: 562 | C40: 437 | D40: 34.2
A41: 39 | B41: 574 | C41: 425 | D41: 35.1
A42: 40 | B42: 587 | C42: 412 | D42: 36
A43: 41 | B43: 600 | C43: 399 | D43: 36.9
A44: 42 | B44: 612 | C44: 387 | D44: 37.8
A45: 43 | B45: 625 | C45: 374 | D45: 38.7
A46: 44 | B46: 637 | C46: 362 | D46: 39.6
A47: 45 | B47: 649 | C47: 350 | D47: 40.5
A48: 46 | B48: 661 | C48: 338 | D48: 41.4
A49: 47 | B49: 672 | C49: 327 | D49: 42.3
A50: 48 | B50: 684 | C50: 315 | D50: 43.2
A51: 49 | B51: 695 | C51: 304 | D51: 44.1
A52: 50 | B52: 706 | C52: 293 | D52: 45
A53: 51 | B53: 717 | C53: 282 | D53: 45.9
A54: 52 | B54: 728 | C54: 271 | D54: 46.8
A55: 53 | B55: 739 | C55: 260 | D55: 47.7
A56: 54 | B56: 749 | C56: 250 | D56: 48.6
A57: 55 | B57: 760 | C57: 239 | D57: 49.5
A58: 56 | B58: 770 | C58: 229 | D58: 50.4
A59: 57 | B59: 780 | C59: 219 | D59: 51.3
A60: 58 | B60: 789 | C60: 210 | D60: 52.2
A61: 59 | B61: 799 | C61: 200 | D61: 53.1
A62: 60 | B62: 808 | C62: 191 | D62: 54
A63: 61 | B63: 817 | C63: 182 | D63: 54.9
A64: 62 | B64: 826 | C64: 173 | D64: 55.8
A65: 63 | B65: 835 | C65: 164 | D65: 56.7
A66: 64 | B66: =ROUND(Max*SIN(A66*PI()/Steps),0) -> 843 | C66: =Max-B66 -> 156 | D66: =ROUND(MOD(180*A66/Steps,360), 1) -> 57.6
A67: 65 | B67: 852 | C67: 147 | D67: 58.5
A68: 66 | B68: 860 | C68: 139 | D68: 59.4
A69: 67 | B69: 868 | C69: 131 | D69: 60.3
A70: 68 | B70: 875 | C70: 124 | D70: 61.2
A71: 69 | B71: 883 | C71: 116 | D71: 62.1
A72: 70 | B72: 890 | C72: 109 | D72: 63
A73: 71 | B73: 897 | C73: 102 | D73: 63.9
A74: 72 | B74: 904 | C74: 95 | D74: 64.8
A75: 73 | B75: 910 | C75: 89 | D75: 65.7
A76: 74 | B76: 917 | C76: 82 | D76: 66.6
A77: 75 | B77: 923 | C77: 76 | D77: 67.5
A78: 76 | B78: 929 | C78: 70 | D78: 68.4
A79: 77 | B79: 935 | C79: 64 | D79: 69.3
A80: 78 | B80: 940 | C80: 59 | D80: 70.2
A81: 79 | B81: 945 | C81: 54 | D81: 71.1
A82: 80 | B82: 950 | C82: 49 | D82: 72
A83: 81 | B83: 955 | C83: 44 | D83: 72.9
A84: 82 | B84: 959 | C84: 40 | D84: 73.8
A85: 83 | B85: 964 | C85: 35 | D85: 74.7
A86: 84 | B86: 968 | C86: 31 | D86: 75.6
A87: 85 | B87: 971 | C87: 28 | D87: 76.5
A88: 86 | B88: 975 | C88: 24 | D88: 77.4
A89: 87 | B89: 978 | C89: 21 | D89: 78.3
A90: 88 | B90: 981 | C90: 18 | D90: 79.2
A91: 89 | B91: 984 | C91: 15 | D91: 80.1
A92: 90 | B92: 987 | C92: 12 | D92: 81
A93: 91 | B93: 989 | C93: 10 | D93: 81.9
A94: 92 | B94: 991 | C94: 8 | D94: 82.8
A95: 93 | B95: 993 | C95: 6 | D95: 83.7
A96: 94 | B96: 995 | C96: 4 | D96: 84.6
A97: 95 | B97: 996 | C97: 3 | D97: 85.5
A98: 96 | B98: =ROUND(Max*SIN(A98*PI()/Steps),0) -> 997 | C98: =Max-B98 -> 2 | D98: 86.4
A99: 97 | B99: 998 | C99: 1 | D99: 87.3
A100: 98 | B100: 999 | C100: 0 | D100: 88.2
A101: 99 | B101: 999 | C101: 0 | D101: 89.1
A102: 100 | B102: 999 | C102: 0 | D102: 90
A103: 101 | B103: 999 | C103: 0 | D103: =ROUND(MOD(180*A103/Steps,360), 1) -> 90.9
A104: 102 | B104: 999 | C104: 0 | D104: 91.8
A105: 103 | B105: 998 | C105: 1 | D105: 92.7
A106: 104 | B106: 997 | C106: 2 | D106: 93.6
A107: 105 | B107: 996 | C107: 3 | D107: 94.5
A108: 106 | B108: 995 | C108: 4 | D108: 95.4
A109: 107 | B109: 993 | C109: 6 | D109: 96.3
A110: 108 | B110: 991 | C110: 8 | D110: 97.2
A111: 109 | B111: 989 | C111: 10 | D111: 98.1
A112: 110 | B112: 987 | C112: 12 | D112: 99
A113: 111 | B113: 984 | C113: 15 | D113: 99.9
A114: 112 | B114: 981 | C114: 18 | D114: 100.8
A115: 113 | B115: 978 | C115: 21 | D115: 101.7
A116: 114 | B116: 975 | C116: 24 | D116: 102.6
A117: 115 | B117: 971 | C117: 28 | D117: 103.5
A118: 116 | B118: 968 | C118: 31 | D118: 104.4
A119: 117 | B119: 964 | C119: 35 | D119: 105.3
A120: 118 | B120: 959 | C120: 40 | D120: 106.2
A121: 119 | B121: 955 | C121: 44 | D121: 107.1
A122: 120 | B122: 950 | C122: 49 | D122: 108
A123: 121 | B123: 945 | C123: 54 | D123: 108.9
A124: 122 | B124: 940 | C124: 59 | D124: 109.8
A125: 123 | B125: 935 | C125: 64 | D125: 110.7
A126: 124 | B126: 929 | C126: 70 | D126: 111.6
A127: 125 | B127: 923 | C127: 76 | D127: 112.5
A128: 126 | B128: 917 | C128: 82 | D128: 113.4
A129: 127 | B129: 910 | C129: 89 | D129: 114.3
A130: 128 | B130: 904 | C130: =Max-B130 -> 95 | D130: 115.2
A131: 129 | B131: 897 | C131: 102 | D131: 116.1
A132: 130 | B132: 890 | C132: 109 | D132: 117
A133: 131 | B133: 883 | C133: 116 | D133: 117.9
A134: 132 | B134: 875 | C134: 124 | D134: 118.8
A135: 133 | B135: 868 | C135: 131 | D135: 119.7
A136: 134 | B136: 860 | C136: 139 | D136: 120.6
A137: 135 | B137: 852 | C137: 147 | D137: 121.5
A138: 136 | B138: 843 | C138: 156 | D138: 122.4
A139: 137 | B139: 835 | C139: 164 | D139: 123.3
A140: 138 | B140: 826 | C140: 173 | D140: 124.2
A141: 139 | B141: 817 | C141: 182 | D141: 125.1
A142: 140 | B142: 808 | C142: 191 | D142: 126
A143: 141 | B143: 799 | C143: 200 | D143: 126.9
A144: 142 | B144: 789 | C144: 210 | D144: 127.8
A145: 143 | B145: 780 | C145: 219 | D145: 128.7
A146: 144 | B146: 770 | C146: 229 | D146: 129.6
A147: 145 | B147: 760 | C147: 239 | D147: 130.5
A148: 146 | B148: 749 | C148: 250 | D148: 131.4
A149: 147 | B149: 739 | C149: 260 | D149: 132.3
A150: 148 | B150: 728 | C150: 271 | D150: 133.2
A151: 149 | B151: 717 | C151: 282 | D151: 134.1
A152: 150 | B152: 706 | C152: 293 | D152: 135
A153: 151 | B153: 695 | C153: 304 | D153: 135.9
A154: 152 | B154: 684 | C154: 315 | D154: 136.8
A155: 153 | B155: 672 | C155: 327 | D155: 137.7
A156: 154 | B156: 661 | C156: 338 | D156: 138.6
A157: 155 | B157: 649 | C157: 350 | D157: 139.5
A158: 156 | B158: 637 | C158: 362 | D158: 140.4
A159: 157 | B159: 625 | C159: 374 | D159: 141.3
A160: 158 | B160: 612 | C160: 387 | D160: 142.2
A161: 159 | B161: 600 | C161: 399 | D161: 143.1
A162: 160 | B162: =ROUND(Max*SIN(A162*PI()/Steps),0) -> 587 | C162: =Max-B162 -> 412 | D162: 144
A163: 161 | B163: 574 | C163: 425 | D163: 144.9
A164: 162 | B164: 562 | C164: 437 | D164: 145.8
A165: 163 | B165: 548 | C165: 451 | D165: 146.7
A166: 164 | B166: 535 | C166: 464 | D166: 147.6
A167: 165 | B167: 522 | C167: 477 | D167: =ROUND(MOD(180*A167/Steps,360), 1) -> 148.5
A168: 166 | B168: 509 | C168: 490 | D168: 149.4
A169: 167 | B169: 495 | C169: 504 | D169: 150.3
A170: 168 | B170: 481 | C170: 518 | D170: 151.2
A171: 169 | B171: 467 | C171: 532 | D171: 152.1
A172: 170 | B172: 454 | C172: 545 | D172: 153
A173: 171 | B173: 439 | C173: 560 | D173: 153.9
A174: 172 | B174: 425 | C174: 574 | D174: 154.8
A175: 173 | B175: 411 | C175: 588 | D175: 155.7
A176: 174 | B176: 397 | C176: 602 | D176: 156.6
A177: 175 | B177: 382 | C177: 617 | D177: 157.5
A178: 176 | B178: 368 | C178: 631 | D178: 158.4
A179: 177 | B179: 353 | C179: 646 | D179: 159.3
A180: 178 | B180: 338 | C180: 661 | D180: 160.2
A181: 179 | B181: 324 | C181: 675 | D181: 161.1
A182: 180 | B182: 309 | C182: 690 | D182: 162
A183: 181 | B183: 294 | C183: 705 | D183: 162.9
A184: 182 | B184: 279 | C184: 720 | D184: 163.8
A185: 183 | B185: 264 | C185: 735 | D185: 164.7
A186: 184 | B186: 248 | C186: 751 | D186: 165.6
A187: 185 | B187: 233 | C187: 766 | D187: 166.5
A188: 186 | B188: 218 | C188: 781 | D188: 167.4
A189: 187 | B189: 203 | C189: 796 | D189: 168.3
A190: 188 | B190: 187 | C190: 812 | D190: 169.2
A191: 189 | B191: 172 | C191: 827 | D191: 170.1
A192: 190 | B192: 156 | C192: 843 | D192: 171
A193: 191 | B193: 141 | C193: 858 | D193: 171.9
A194: 192 | B194: 125 | C194: =Max-B194 -> 874 | D194: 172.8
A195: 193 | B195: 110 | C195: 889 | D195: 173.7
A196: 194 | B196: 94 | C196: 905 | D196: 174.6
A197: 195 | B197: 78 | C197: 921 | D197: 175.5
A198: 196 | B198: 63 | C198: 936 | D198: 176.4
A199: 197 | B199: 47 | C199: 952 | D199: 177.3
A200: 198 | B200: 31 | C200: 968 | D200: 178.2
... 15 more rows

Sheet Test mit 8
A1: 0 | B1: =ROUND(255*SIN(A1/16*PI()), 1) -> 0
A2: 1 | B2: =ROUND(255*SIN(A2/16*PI()), 1) -> 49.7
A3: 2 | B3: 97.6
A4: 3 | B4: 141.7
A5: 4 | B5: 180.3
A6: 5 | B6: 212
A7: 6 | B7: 235.6
A8: 7 | B8: 250.1
A9: 8 | B9: 255
A10: 9 | B10: 250.1
A11: 10 | B11: 235.6
A12: 11 | B12: 212
A13: 12 | B13: 180.3
A14: 13 | B14: 141.7
A15: 14 | B15: 97.6
A16: 15 | B16: 49.7
A17: 16 | B17: 0
A18: 17 | B18: -49.7
A19: 18 | B19: -97.6
A20: 19 | B20: -141.7
A21: 20 | B21: -180.3
A22: 21 | B22: -212
A23: 22 | B23: -235.6
A24: 23 | B24: -250.1
A25: 24 | B25: -255
A26: 25 | B26: -250.1
A27: 26 | B27: -235.6
A28: 27 | B28: -212
A29: 28 | B29: -180.3
A30: 29 | B30: -141.7
A31: 30 | B31: -97.6
A32: 31 | B32: -49.7
A33: 32 | B33: 0
